Cogmind - Beta 12 @@@ ROGUE MODE // 2024.02.11 @ 14:42:51 Player: Remuluson2 Result: Destroyed by G-34 Mercenary with Small Laser Performance ------------- Evolutions (1) 500 Regions Visited (2) 400 Robots Destroyed (20) 100 Value Destroyed (501) 501 Prototype IDs (0) 0 Alien Tech Used (0) 0 Bonus (0) 0 TOTAL SCORE: 1501 Bonus ------- None Cogmind --------- Core Integrity 0/400 Matter 300/300 Energy 100/100 System Corruption 0% Temperature Cool (15) Movement Core (50) Location -9/Materials Parts ------- > --- POWER (1) -------- (None) > --- PROPULSION (4) --- (None) > --- UTILITY (2) ------ (None) > --- WEAPON (2) ------- (None) > --- INVENTORY (5) ---- Light Ion Engine Heat Sink Improved Heat Sink Datajack Peak State ------------ > --- POWER ------------ Light Nuclear Core > --- PROPULSION ------- Aluminum Leg Aluminum Leg Aluminum Leg > --- UTILITY ---------- Large Storage Unit Hardened Light Armor Plating > --- WEAPON ----------- Small Laser Particle Gun > --- INVENTORY -------- Ion Engine Light Ion Engine Light Ion Engine Heat Sink Improved Heat Sink Cooling System Large Storage Unit Datajack [Rating: 13] Favorites ----------- Power Light Ion Engine Engine Light Ion Engine Power Core Light Nuclear Core Propulsion Aluminum Leg Leg Aluminum Leg Utility Heat Sink Device Heat Sink Storage Medium Storage Unit Protection Weapon Shielding Weapon Assault Rifle Energy Gun Small Laser Ballistic Gun Assault Rifle Special Melee Weapon Datajack Build | -11 -10 -9 ------- Run | Jun Mat Mat Slots Evolved 2 | . . 2 Power . | . . . Propulsion 2 | . . 2 Utility . | . . . Weapon . | . . . Parts Attached 42 | 7 21 14 Power 7 | 1 4 2 Engine 6 | 1 4 1 Core 1 | . . 1 Reactor . | . . . Propulsion 14 | 3 8 3 Treads . | . . . Leg 14 | 3 8 3 Wheel . | . . . Hover . | . . . Flight . | . . . Utility 7 | 1 2 4 Device 2 | 1 . 1 Storage 2 | . 1 1 Processor . | . . . Hackware . | . . . Protection 3 | . 1 2 Artifact . | . . . Weapon 14 | 2 7 5 Energy Gun 4 | . . 4 Energy Cannon . | . . . Ballistic Gun 6 | 2 4 . Ballistic Cannon . | . . . Launcher . | . . . Special Weapon . | . . . Impact Weapon . | . . . Slashing Weapon . | . . . Piercing Weapon . | . . . Special Melee Weapon 4 | . 3 1 Unidentified Prototypes . | . . . Parts Lost 16 | . 6 10 Power 2 | . 1 1 Propulsion 6 | . 1 5 Utility 2 | . 1 1 Weapon 6 | . 3 3 Highest Loss Streak 4 | . 4 3 To Critical Strikes . | . . . Average Slot Usage (%) 82 | . 92 65 Engine 9 | . 12 3 Core 2 | . . 5 Leg 26 | . 27 23 Device 3 | . 4 1 Storage 8 | . 9 7 Protection 9 | . 9 7 Energy Gun 4 | . . 12 Ballistic Gun 13 | . 19 2 Special Melee Weapon 4 | . 6 . Naked Turns 10 | . . 10 Heaviest Build 34 | 7 19 34 Greatest Support 40 | 20 20 40 Greatest Overweight (x) 5 | . 1 5 Average Overweight (x) . | . . . Largest Inventory Capacity 15 | 5 10 15 Average Capacity 7 | 5 8 11 Most Carried 9 | 5 8 9 Average Carried 4 | 2 5 5 Final Capacity 10 | 5 10 5 Final Carried 7 | 3 7 4 Class Distribution -------------------- 90% | Mutant 9% | Scavenger-Mutant Dominant Class ---------------- Mutant | -10/Materials Scavenger-Mutant | -9/Materials Resources | -11 -10 -9 ----------- Run | Jun Mat Mat Matter Collected 710 | 235 341 134 Remotely . | . . . Salvage Created 729 | 63 460 206 Parts 44 | 5 27 12 Haulers Intercepted . | . . . Recyclers Shooed 2 | . 1 1 Parts Field Recycled . | . . . Retrieved Matter . | . . . Parts Self-Destructed . | . . . Prevented . | . . . Kills | -11 -10 -9 ------- Run | Jun Mat Mat Combat Hostiles Destroyed 15 | 1 10 4 Guns 14 | 1 9 4 AOE 1 | . 1 . Classes Destroyed 6 | 2 2 2 Worker 2 | 1 . 1 Recycler 2 | . 2 . Watcher 1 | . . 1 Swarmer 4 | . 4 . Grunt 10 | 1 6 3 Sentry 1 | . . 1 Best Kill Streak 3 | 1 3 2 Combat Bots Only 3 | 1 3 1 Max Kills in Single Turn 1 | 1 1 1 Gunslinging . | . . . Exploded 1 | . 1 . Melee . | . . . Uniques/NPCs Destroyed . | . . . Combat | -11 -10 -9 -------- Run | Jun Mat Mat Damage Taken 1928 | 45 802 1081 Core 597 | . 192 405 Absorbed by Shields . | . . . Redirected to Shielding 50 | . 50 . Core Remaining (%) 61 | 100 23 . Volleys Fired 121 | 8 60 53 Largest 2 | 2 2 2 Hottest 105 | 40 40 105 Shots Fired 183 | 16 98 69 Gun 183 | 16 98 69 Cannon . | . . . Launcher . | . . . Special . | . . . Kinetic 137 | 16 98 23 Thermal 46 | . . 46 Explosive . | . . . Electromagnetic . | . . . Robot Hit Streak 19 | 7 8 19 Robot Miss Streak 4 | 4 4 4 Penetration Max . | . . . Secondary Targets 1 | . 1 . Max Gunslinging Chain 1 | . 1 . Shots Hit Robots 136 | 10 71 55 Core Hits 48 | 5 22 21 Critical Kills 1 | . 1 . Critical Parts Destroyed . | . . . Critical Strikes 1 | . 1 . Destroy 1 | . 1 . Melee Attacks 13 | . 8 5 Impact . | . . . Slashing . | . . . Piercing . | . . . Sneak Attacks 11 | . 8 3 Combat Hostiles . | . . . Follow-up Attacks . | . . . Damage Inflicted 1535 | 152 818 565 Guns 1298 | 102 641 555 Cannons . | . . . Explosions 127 | . 127 . Melee . | . . . Ramming 110 | 50 50 10 Kinetic 884 | 102 641 141 Thermal 414 | . . 414 Explosive 127 | . 127 . Electromagnetic . | . . . Impact . | . . . Slashing . | . . . Piercing . | . . . Highest Corruption 1 | . 1 . Average Corruption 1 | . 1 . Corruption Purged . | . . . Corruption Blocked . | . . . Effects 5 | . 5 . Matter Fused 1 | . 1 . Heat Flow Errors 1 | . 1 . Data Loss (minor) 1 | . 1 . Data Loss (major) 1 | . 1 . Misfires 1 | . 1 . Overload Shots . | . . . Overflow Damage . | . . . Projectiles . | . . . Explosions . | . . . Melee . | . . . Knockbacks . | . . . Impact . | . . . Kinetic . | . . . Secondary . | . . . Self-Inflicted Damage 1 | . . 1 Shots . | . . . Rammed 6 | . . 6 Targets Rammed 55 | 24 24 7 Kicked 49 | 24 24 1 Crushed . | . . . Highest Temperature 410 | 6 97 410 Average Temperature 82 | 6 20 100 Received Heat Transfer 774 | 24 291 459 Effects 4 | . . 4 Shutdowns 1 | . . 1 Energy Bleed 1 | . . 1 Interference 1 | . . 1 Matter Decay 1 | . . 1 Siege Activations . | . . . Robots Corrupted . | . . . Combat Hostiles . | . . . Parts Fried . | . . . Impact Corruptions . | . . . Robots Melted . | . . . Combat Hostiles . | . . . Parts Melted 1 | . . 1 Heat Transferred 993 | . . 993 Parts Sabotaged . | . . . Parts Stolen . | . . . Parts Stripped . | . . . Power Chain Reactions . | . . . Missiles Intercepted . | . . . Alert | -11 -10 -9 ------- Run | Jun Mat Mat Peak Influence 196 | 20 190 196 Initial 79 | . 3 79 Average 39 | 4 58 131 Maximum Alert Level . | . . . Low Security (%) 100 | 100 100 100 Level 1 . | . . . Level 2 . | . . . Level 3 . | . . . Level 4 . | . . . Level 5 . | . . . High Security . | . . . Max Security . | . . . Squads Dispatched 1 | . 1 . Investigation 1 | . 1 . Extermination . | . . . Reinforcement . | . . . Assault . | . . . Garrison . | . . . Intercept . | . . . Searches Triggered . | . . . Construction Impeded . | . . . Haulers Reinforced . | . . . Active Scanning Responses . | . . . Cargo Convoy Interrupts . | . . . Stealth | -11 -10 -9 --------- Run | Jun Mat Mat Distress Signals 1 | . . 1 Communications Jammed . | . . . Distress Signals . | . . . Times Spotted 30 | 1 17 12 Peak Tracking Total 6 | 1 6 5 Tactical Retreats 2 | . 2 . Traps | -11 -10 -9 ------- Run | Jun Mat Mat Traps Triggered 7 | . 7 . Indirectly . | . . . Trap Hack Attempts . | . . . Triggered . | . . . Disarmed . | . . . Reprogrammed . | . . . Reused . | . . . Traps Extracted . | . . . Installed . | . . . Triggered . | . . . Machines | -11 -10 -9 ---------- Run | Jun Mat Mat Machines Disabled 2 | . 2 . Max in Single Turn 2 | . 2 . Machines Repaired . | . . . Machines Sabotaged . | . . . Overloaded Fab Kills . | . . . Hacking | -11 -10 -9 --------- Run | Jun Mat Mat Machines Accessed 3 | . 3 . Terminals 3 | . 3 . Fabricators . | . . . Repair Stations . | . . . Recycling Units . | . . . Scanalyzers . | . . . Garrison Access . | . . . Total Hacks 8 | . 8 . Successful 2 | . 2 . Failed 6 | . 6 . Catastrophic 4 | . 4 . Database Lockouts . | . . . Manual 4 | . 4 . Terminals 8 | . 8 . Fabricators . | . . . Repair Stations . | . . . Recycling Units . | . . . Scanalyzers . | . . . Garrison Access . | . . . Terminal Hacks 2 | . 2 . Record 2 | . 2 . Fabricator Hacks . | . . . Repair Station Hacks . | . . . Recycling Unit Hacks . | . . . Scanalyzer . | . . . Garrison Access Hacks . | . . . Unauthorized Hacks . | . . . Terminals . | . . . Fabricators . | . . . Repair Stations . | . . . Recycling Units . | . . . Scanalyzers . | . . . Garrison Access . | . . . Data Cores Recovered . | . . . Used . | . . . Hacking Detections 3 | . 3 . Full Trace Events 1 | . 1 . Feedback Events . | . . . Feedback Blocked . | . . . Robot Schematics Acquired . | . . . Robots Built . | . . . Authchips . | . . . Time . | . . . Total Robot Build Rating . | . . . Part Schematics Acquired . | . . . Parts Built . | . . . Authchips . | . . . Time . | . . . Total Part Build Rating . | . . . Parts Repaired . | . . . Time . | . . . Parts Recycled . | . . . Recycled Matter . | . . . Retrieved Matter . | . . . Retrieved Components . | . . . Parts Scanalyzed . | . . . Part Schematics Acquired . | . . . Parts Damaged . | . . . Bothacking | -11 -10 -9 ------------ Run | Jun Mat Mat Used RIF Installer . | . . . Robots Hacked 9 | . 6 3 Non-combat 9 | . 6 3 Combat . | . . . Robot Hacks Applied 10 | . 7 3 parse_system 1 | . . 1 no_distress 6 | . 5 1 find_recycling 3 | . 2 1 Relay Couplers Released . | . . . Fabnet Peak Effective % . | . . . Robots Rewired . | . . . Allies Hacked . | . . . Hacks Repelled . | . . . Allies | -11 -10 -9 -------- Run | Jun Mat Mat Total Allies . | . . . Largest Group . | . . . Highest-Rated Group . | . . . Highest-Rated Ally . | . . . Total Orders . | . . . Ally Attacks . | . . . Total Damage . | . . . Kills . | . . . Allies Corrupted . | . . . Allies Melted . | . . . Intel | -11 -10 -9 ------- Run | Jun Mat Mat Robot Analysis Total . | . . . Derelict Logs Recovered . | . . . Drone Launches . | . . . Drone Recoveries . | . . . Exploration | -11 -10 -9 ------------- Run | Jun Mat Mat Turns Passed 2471 | 1404 684 383 Spaces Moved 1076 | 538 373 165 Core 93 | 25 . 68 Treads . | . . . Legs 983 | 513 373 97 Wheels . | . . . Hover . | . . . Flight . | . . . Fastest Speed 50 | 50 120 50 Average Speed 118 | 116 120 121 Slowest Speed 300 | 120 190 300 Overloaded Moves . | . . . Propulsion Burnouts . | . . . Robots Hopped . | . . . Cave-ins Triggered . | . . . Exploration Rate (%) 26 | 23 41 14 Regions Visited 2 Branch Regions . Pre-discovered Areas . | . . . Known Exits Taken . | . . . Unknown Exits Taken 2 | 1 1 . Scrap Searched . | . . . Spaces Dug . | . . . Terrain Destroyed 21 | . 21 . Melee . | . . . Projectile . | . . . AOE 21 | . 21 . Terrain Rammed . | . . . Walls Destroyed . | . . . Machines Disabled . | . . . Actions | -11 -10 -9 --------- Run | Jun Mat Mat Total 2088 | 1294 511 283 Wait 731 | 709 3 19 Move 1074 | 537 372 165 Hop . | . . . Pick Up 40 | 9 20 11 Fast Attach . | . . . Attach 30 | 6 14 10 Detach 2 | . . 2 Swap 12 | 1 7 4 Drop 10 | . 3 7 Fire 121 | 8 60 53 Melee 13 | . 8 5 Ram 6 | . . 6 Kick 49 | 24 24 1 Crush . | . . . Escape Stasis . | . . . Rewire . | . . . Trap . | . . . Miscellaneous . | . . . Route ------- -11/Junkyard -10/Materials (discovered 2 exits: [*Mat] / [*Min]) -9/Materials History --------- Turn | Location | Event 2 | -11/Junkyard | Met Revision 17 74 | -11/Junkyard | Discovered new exit (range 8) 1405 | -11/Junkyard | Entered Materials 1406 | -10/Materials | Build established: Mutant 1799 | -10/Materials | Discovered new exit (range 12) 1852 | -10/Materials | Discovered new exit (range 15) 2044 | -10/Materials | Core integrity fell below 50% 2089 | -10/Materials | Entered another Materials area 2089 | -9/Materials | Evolved 2 slots: Propulsion x2 2090 | -9/Materials | Lost 4 parts (1p1n2w) 2215 | -9/Materials | Lost 3 parts (2n1w) 2386 | -9/Materials | Lost 3 parts (3n) 2409 | -9/Materials | Core integrity fell below 50% 2441 | -9/Materials | Lost 3 parts (1p1u1w) 2470 | -9/Materials | Core integrity fell below 20% 2472 | -9/Materials | Destroyed by G-34 Mercenary with Small Laser Last Messages --------------- 02394_ Lgt. Nuclear Core destroyed. 02408_ Y-45 Defender heat damages Hvy. Assault Rifle. 02408_ Particle Gun severed. 02410_ Sml. Laser destroyed. 02410_ Hrd. Light Armor Plating destroyed. 02411_ Y-45 Defender heat short circuits Heat Sink. 02412_ Y-45 Defender heat damages Hvy. Assault Rifle, Beam Rifle, Lgt. Armor Plating. 02412_ Acquired Particle Gun. 02413_ Y-45 Defender heat spikes uncontrollably. 02415_ Dropped Cooling System. 02421_ Y-45 Defender heat short circuits Lgt. Treads. 02422_ Acquired 10 matter. 02425_ Acquired 34 matter. 02427_ R-06 Scavenger destroyed. 02429_ Acquired 17 matter. 02463_ Particle Gun destroyed. 02464_ Slammed into L-31 Rogue. 02464_ Destabilizing: Core damaged (-8). 02465_ Slammed into L-31 Rogue. Map ----- +----------------------------------------------------+ | | | ??????????????????????????????????????????? | | ??????????????????????????????????????????? | | ??????????????????????????????????????????? | | ??????????????????????????????????????????? | | ??????????????????????????????????????????? | | ??????????????????????????????????????????? | | ??????????????????????????????????????????? | | ??????????????????????????????????????????? | | ??????????????????????????????????????????? | | ??????????????????????????????????????????? | | ??????????????????????????????????????????? | | ??????????????????????????????????????????? | | ?????????????????????????????????????###### | | ?????????????????????????????????????# # | | ?????????????????????????????????????# # | | ??????????????????????????????######## # | | ?????????????????????????????##! # # | | ?????????????????????????????#! # # | | ?????????????????????????????#!! # # | | ?????????????????????????????# + # | | ?????????????????????????????#! # # | | ?????????????????????????????##! # # | | ??????#######?????????????????#### ###### | | ??##### ##################### #???? | | ??# # @ #???? | | ??# # g g l #???? | | ??# # w Y % #???? | | ??# # ###+######+########## #???? | | ??# ## ## ## #?#####+#####?? | | ??# ## ## ## #?# % #?? | | ### ## ## ## !! #?# #?? | | ### ### ## ## !! #?# #?? | | ## ## !! ! #?# #?? | | ## ## #?# """ """ #?? | | ## ## #?# """ """ #?? | | ###/##### ## ## #?# """ """ #?? | | ## % ## ## ## #?# #?? | | ## "" #? ## ###########?###########?? | | ## "T #? ## #???????????????????????? | | ## "" #? ## #???????????????????????? | | ## #? ########???????????????????????? | | #########? #??????????????????????????????? | | ????????? ???????????????????????????????? | | ????????? ???????????????????????????????? | | ?????????????????????????????????????????? | | ?????????????????????????????????????????? | | ?????????????????????????????????????????? | | ?????????????????????????????????????????? | | ?????????????????????????????????????????? | +----------------------------------------------------+ Best States ------------- Heat Dissipation 50 Energy Generation 14 Energy Capacity 250 Matter Stores 300 Matter Capacity 300 Sight Range 16 Terrain Scan Density 10 Armor Coverage 150 Weapon Shielding 33 Evasion (%) 55 Item Schematics ----------------- None Robot Schematics ------------------ None Fabricated ------------ Nothing Alien Tech Used ----------------- None Achievements -------------- None Challenges ------------ None Game ------ Seed QuantumPointyRefractor Manual? 0 Play Time 00:25:09 Cumulative 3.4 hours Start 2024.02.11 @ 14:18:19 End 2024.02.11 @ 14:42:51 Sessions 1 Manual Loads 0 Difficulty Rogue Special Mode None Game No. 2 Rogue 2 Adventurer 0 Explorer 0 Win Type - Total 0 Types 0/0/0/0/0/0/0/0/0 Lore% 2 Gallery% 4 Achievement% 5 Wizard Run 0 Options --------- ASCII 0 Keyboard 0 Movement Numpad Keybinds 0 Fullscreen 1 Font 18/SmallcapsGlow Map View 76x50 Tactical HUD 1 Map Filters NONE Filters NONE Steam 1 RUN: 9d94843b-a2a6-43a0-8db0-1dfffda6020e